Cogmind - Beta 16 @@@ ROGUE MODE // 2025.11.20 @ 20:35:18 Player: shapeshifter Result: Destroyed by S-10 Pest with Light Assault Rifle Performance ------------- Evolutions (2) 1000 Regions Visited (3) 600 Robots Destroyed (2) 10 Value Destroyed (12) 12 Prototype IDs (0) 0 Alien Tech Used (0) 0 Bonus (470) 470 TOTAL SCORE: 2092 Bonus ------- Pacifist 470 Cogmind --------- Core Integrity 0/550 Matter 300/300 Energy 100/100 System Corruption 0% Temperature Cool (0) Movement Core (50) Location -8/Materials Parts ------- > --- POWER (1) -------- (None) > --- PROPULSION (4) --- (None) > --- UTILITY (4) ------ (None) > --- WEAPON (2) ------- (None) > --- INVENTORY (5) ---- Light Ion Engine Aluminum Leg Aluminum Leg Small Storage Unit Peak State ------------ > --- POWER ------------ Ion Engine > --- PROPULSION ------- Improved Hover Unit Improved Hover Unit VTOL Module > --- UTILITY ---------- Machine Analyzer Improved Terrain Scanner Improved Terrain Scan Processor System Shield > --- WEAPON ----------- Mace Heavy Hammer > --- INVENTORY -------- Light Ion Engine Aluminum Leg Aluminum Leg Small Storage Unit [Rating: 23] Favorites ----------- Power Ion Engine Engine Ion Engine Propulsion Wheel Wheel Wheel Hover Unit Improved Hover Unit Flight Unit VTOL Module Utility Improved Terrain Scanner Device Improved Terrain Scanner Storage Small Storage Unit Processor Improved Terrain Scan Processor Hackware System Shield Weapon Heavy Hammer Impact Weapon Heavy Hammer Build | -11 -10 -9 -8 ------- Run | Yrd Mat Mat Mat Slots Evolved 4 | . . 2 2 Power . | . . . . Propulsion 2 | . . 2 . Utility 2 | . . . 2 Weapon . | . . . . Parts Attached 13 | 4 . 5 4 Power 1 | 1 . . . Engine 1 | 1 . . . Core . | . . . . Reactor . | . . . . Propulsion 5 | 2 . 3 . Treads . | . . . . Leg . | . . . . Wheel 2 | 2 . . . Hover 2 | . . 2 . Flight 1 | . . 1 . Utility 5 | 1 . 2 2 Device 1 | . . 1 . Storage 1 | 1 . . . Processor 2 | . . 1 1 Hackware 1 | . . . 1 Protection . | . . . . Artifact . | . . . . Weapon 2 | . . . 2 Energy Gun . | . . . . Energy Cannon . | . . . . Ballistic Gun . | . . . . Ballistic Cannon . | . . . . Launcher . | . . . . Special Weapon . | . . . . Impact Weapon 2 | . . . 2 Slashing Weapon . | . . . . Piercing Weapon . | . . . . Special Melee Weapon . | . . . . Unidentified Prototypes . | . . . . Parts Lost 7 | . . . 7 Power 1 | . . . 1 Propulsion 3 | . . . 3 Utility 2 | . . . 2 Weapon 1 | . . . 1 Highest Loss Streak 7 | . . . 7 To Critical Strikes . | . . . . Average Backups 3 | 2 3 3 4 Power . | . 1 1 1 Propulsion 1 | 1 2 2 2 Utility . | . . . 1 Weapon . | . . . . Tool/Special . | . . . . Unused Backups 3 | . . . 3 Power 1 | . . . 1 Propulsion 2 | . . . 2 Utility . | . . . . Weapon . | . . . . Tool/Special . | . . . . Average Slot Usage (%) 56 | . 57 54 58 Engine 9 | . 14 11 4 Wheel 13 | . 28 15 . Hover 6 | . . 4 13 Flight 2 | . . 2 4 Device 6 | . . 10 5 Storage 6 | . 14 7 . Processor 5 | . . 2 15 Hackware 2 | . . . 7 Impact Weapon 2 | . . . 6 Peak Build Rating 23 | 4 4 13 23 Average Rating 9 | 2 3 7 15 On Entrance 5 | . 4 4 13 Avg Prop Armor Cover (%) 5 | . . 6 4 Naked Turns 8 | . . . 8 Heaviest Build 11 | 10 10 11 11 Greatest Support 20 | 20 20 20 16 Greatest Overweight (x) . | . . . . Average Overweight (x) . | . . . . Largest Inventory Capacity 8 | 8 8 8 5 Average Capacity 6 | 6 8 7 5 Most Carried 5 | 5 4 5 5 Average Carried 3 | 2 3 3 4 Final Capacity 8 | 8 8 5 5 Final Carried 5 | 3 3 5 4 Class Distribution -------------------- 81% | Mutant 18% | Scout Dominant Class ---------------- Mutant | -10/Materials Mutant | -9/Materials Scout | -8/Materials Resources | -11 -10 -9 -8 ----------- Run | Yrd Mat Mat Mat Matter Collected 325 | 226 . . 99 Remotely . | . . . . Salvage Created 41 | . . . 41 Parts . | . . . . Haulers Intercepted . | . . . . Recyclers Shooed . | . . . . Parts Field Recycled . | . . . . Retrieved Matter . | . . . . Parts Self-Destructed . | . . . . Prevented . | . . . . Parts Restored . | . . . . Kills | -11 -10 -9 -8 ------- Run | Yrd Mat Mat Mat Combat Hostiles Destroyed . | . . . . Classes Destroyed 2 | . . . 2 Builder 1 | . . . 1 Tunneler 1 | . . . 1 Best Kill Streak 1 | . . . 1 Combat Bots Only . | . . . . Max Kills in Single Turn 1 | . . . 1 Gunslinging . | . . . . Exploded . | . . . . Melee . | . . . . Uniques/NPCs Destroyed . | . . . . Combat | -11 -10 -9 -8 -------- Run | Yrd Mat Mat Mat Hostile Shots Fired 187 | . 18 33 136 Missed 87 | . 6 17 64 Hits 100 | . 12 16 72 Projectile 100 | . 12 16 72 Critical Strikes 1 | . . . 1 Damage Taken 1209 | . 120 193 896 Core 673 | . 33 89 551 Absorbed by Shields . | . . . . Core Remaining (%) 87 | 100 86 77 . Volleys Fired . | . . . . Largest . | . . . . Hottest . | . . . . Shots Fired . | . . . . Gun . | . . . . Cannon . | . . . . Launcher . | . . . . Special . | . . . . Kinetic . | . . . . Thermal . | . . . . Explosive . | . . . . Electromagnetic . | . . . . Robot Hit Streak . | . . . . Robot Miss Streak . | . . . . Penetration Max . | . . . . Secondary Targets . | . . . . Shots Hit Robots 2 | . . . 2 Core Hits . | . . . . Critical Kills . | . . . . Critical Parts Destroyed 1 | . . . 1 Critical Strikes 1 | . . . 1 Smash 1 | . . . 1 Melee Attacks 5 | . . . 5 Impact 5 | . . . 5 Slashing . | . . . . Piercing . | . . . . Sneak Attacks 2 | . . . 2 Combat Hostiles . | . . . . Follow-up Attacks . | . . . . Damage Inflicted 147 | . . 1 146 Guns . | . . . . Cannons . | . . . . Explosions . | . . . . Melee 146 | . . . 146 Ramming 1 | . . 1 . Kinetic . | . . . . Thermal . | . . . . Explosive . | . . . . Electromagnetic . | . . . . Impact 146 | . . . 146 Slashing . | . . . . Piercing . | . . . . Highest Corruption 1 | . 1 . . Average Corruption 1 | . 1 . . Corruption Purged . | . . . . Corruption Blocked . | . . . . Overload Shots . | . . . . Overflow Damage 106 | . . . 106 Projectiles . | . . . . Explosions . | . . . . Melee 106 | . . . 106 Knockbacks . | . . . . Impact . | . . . . Kinetic . | . . . . Secondary . | . . . . Self-Inflicted Damage . | . . . . Shots . | . . . . Rammed 1 | . . 1 . Targets Rammed 1 | . . 1 . Kicked . | . . . . Crushed . | . . . . Highest Temperature . | . . . . Average Temperature . | . . . . Received Heat Transfer 282 | . . 84 198 Siege Activations . | . . . . Martial Activations . | . . . . Shielding Activations . | . . . . Robots Disrupted . | . . . . Combat Hostiles . | . . . . Robots Corrupted . | . . . . Combat Hostiles . | . . . . Parts Fried 6 | . . . 6 Impact Corruptions 3 | . . . 3 Robots Melted . | . . . . Combat Hostiles . | . . . . Parts Melted . | . . . . Heat Transferred . | . . . . Parts Sabotaged . | . . . . Parts Stolen . | . . . . Parts Stripped . | . . . . Power Chain Reactions . | . . . . Alert | -11 -10 -9 -8 ------- Run | Yrd Mat Mat Mat Maximum Alert Level 1 | . . . 1 Low Security (%) 96 | 100 100 100 87 Level 1 3 | . . . 12 Level 2 . | . . . . Level 3 . | . . . . Level 4 . | . . . . Level 5 . | . . . . High Security . | . . . . Max Security . | . . . . Peak Influence 278 | . . 30 278 Initial 9 | . . . 9 Average 15 | . . 5 43 Influence Increases 414 | . . 62 352 Destroy 0b10 Robot/NC 10 | . . . 10 Successful Hack 28 | . . 2 26 Destroy Structure 1 | . . . 1 Partial Spotted 30 | . . 15 15 Lose Combat Pursuer 345 | . . 45 300 Influence Decreases 136 | . . 40 96 Entered New Map 13 | . . . 13 Time Decay 87 | . . 40 47 Lost Part 36 | . . . 36 Squads Dispatched 3 | . . . 3 Investigation 1 | . . . 1 Extermination . | . . . . Reinforcement 2 | . . . 2 Assault . | . . . . Garrison . | . . . . Intercept . | . . . . Searches Triggered . | . . . . Construction Impeded . | . . . . Haulers Reinforced . | . . . . Active Scanning Responses . | . . . . Cargo Convoy Interrupts . | . . . . Stealth | -11 -10 -9 -8 --------- Run | Yrd Mat Mat Mat Distress Signals 2 | . . 1 1 Communications Jammed . | . . . . Distress Signals . | . . . . Times Spotted 45 | . 4 9 32 Peak Tracking Total 23 | . 3 8 23 Tactical Retreats 6 | . . 2 4 Traps | -11 -10 -9 -8 ------- Run | Yrd Mat Mat Mat Traps Triggered 4 | . 2 . 2 Indirectly . | . . . . Trap Hack Attempts . | . . . . Triggered . | . . . . Disarmed . | . . . . Reprogrammed . | . . . . Reused . | . . . . Traps Extracted . | . . . . Installed . | . . . . Triggered . | . . . . Machines | -11 -10 -9 -8 ---------- Run | Yrd Mat Mat Mat Machines Disabled . | . . . . Max in Single Turn . | . . . . Machines Repaired . | . . . . Machines Dismantled . | . . . . Machines Sabotaged . | . . . . Overloaded Fab Kills . | . . . . Hacking | -11 -10 -9 -8 --------- Run | Yrd Mat Mat Mat Machines Accessed 10 | . 3 3 4 Terminals 8 | . 2 2 4 Fabricators . | . . . . Repair Stations . | . . . . Recycling Units 1 | . 1 . . Scanalyzers 1 | . . 1 . Garrison Access . | . . . . Total Hacks 32 | . 7 7 18 Successful 7 | . 1 2 4 Failed 24 | . 6 4 14 Catastrophic 6 | . 3 . 3 Database Lockouts 1 | . . 1 . Manual 28 | . 5 5 18 Terminals 28 | . 5 5 18 Fabricators . | . . . . Repair Stations . | . . . . Recycling Units 2 | . 2 . . Scanalyzers 2 | . . 2 . Garrison Access . | . . . . Terminal Hacks 1 | . . . 1 Branch Access Points 1 | . . . 1 Fabricator Hacks . | . . . . Repair Station Hacks . | . . . . Recycling Unit Hacks 1 | . 1 . . Retrieve Components 1 | . 1 . . Scanalyzer 1 | . . 1 . Retrieve Study 1 | . . 1 . Garrison Access Hacks . | . . . . Unauthorized Hacks 4 | . . 1 3 Terminals 4 | . . 1 3 Skim 4 | . . 1 3 Fabricators . | . . . . Repair Stations . | . . . . Recycling Units . | . . . . Scanalyzers . | . . . . Garrison Access . | . . . . Data Cores Recovered . | . . . . Used . | . . . . Hacking Detections 9 | . 3 2 4 Full Trace Events 1 | . 1 . . Feedback Events . | . . . . Feedback Blocked . | . . . . Robot Schematics Acquired . | . . . . Robots Built . | . . . . Authchips . | . . . . Time . | . . . . Total Robot Build Rating . | . . . . Part Schematics Acquired . | . . . . Parts Built . | . . . . Authchips . | . . . . Time . | . . . . Total Part Build Rating . | . . . . Part Studies Acquired 1 | . . 1 . Parts Repaired . | . . . . Time . | . . . . Parts Recycled . | . . . . Recycled Matter . | . . . . Retrieved Matter . | . . . . Retrieved Components . | . . . . Parts Scanalyzed . | . . . . Part Schematics Acquired . | . . . . Parts Damaged . | . . . . Bothacking | -11 -10 -9 -8 ------------ Run | Yrd Mat Mat Mat Used RIF Installer . | . . . . Robots Hacked . | . . . . Non-combat . | . . . . Combat . | . . . . Robot Hacks Applied . | . . . . Relay Couplers Released . | . . . . Fabnet Peak Effective % . | . . . . Robots Rewired . | . . . . Allies Hacked . | . . . . Hacks Repelled . | . . . . Allies | -11 -10 -9 -8 -------- Run | Yrd Mat Mat Mat Total Allies . | . . . . Largest Group . | . . . . Highest-Rated Group . | . . . . Highest-Rated Ally . | . . . . Total Orders . | . . . . Ally Attacks . | . . . . Total Damage . | . . . . Kills . | . . . . Allies Corrupted . | . . . . Allies Melted . | . . . . Intel | -11 -10 -9 -8 ------- Run | Yrd Mat Mat Mat Active Infowar (turns) 388 | . . 249 139 Terrain 366 | . . 249 117 Machine Analysis 139 | . . . 139 Robot Analysis Total . | . . . . Derelict Logs Recovered . | . . . . Drone Launches . | . . . . Drone Recoveries . | . . . . Exploration | -11 -10 -9 -8 ------------- Run | Yrd Mat Mat Mat Turns Passed 619 | 43 137 254 185 Spaces Moved 699 | 48 154 222 275 Core 97 | 19 . . 78 Treads . | . . . . Legs . | . . . . Wheels 280 | 29 154 97 . Hover 322 | . . 125 197 Flight . | . . . . Fastest Speed 50 | 50 80 56 50 Average Speed 65 | 68 80 68 54 Slowest Speed 80 | 80 80 80 60 Overloaded Moves . | . . . . Propulsion Burnouts . | . . . . Robots Hopped . | . . . . Potential Cave-ins . | . . . . Cave-ins Triggered . | . . . . Exploration Rate (%) 28 | 4 35 31 43 Regions Visited 3 Branch Regions . Pre-discovered Areas . | . . . . Known Exits Taken . | . . . . Unknown Exits Taken 3 | 1 1 1 . Scrap Searched . | . . . . Spaces Dug 1 | . . . 1 Terrain Destroyed 1 | . . . 1 Melee 1 | . . . 1 Projectile . | . . . . AOE . | . . . . Terrain Rammed . | . . . . Walls Destroyed . | . . . . Machines Disabled . | . . . . Actions | -11 -10 -9 -8 --------- Run | Yrd Mat Mat Mat Total 850 | 58 168 324 300 Wait 115 | . 12 89 14 Move 696 | 47 153 221 275 Hop . | . . . . Pick Up 15 | 7 1 5 2 Fast Attach 2 | . . 1 1 Attach 12 | 4 1 4 3 Detach 1 | . . 1 . Swap . | . . . . Drop 3 | . 1 2 . Fire . | . . . . Melee 5 | . . . 5 Ram 1 | . . 1 . Kick . | . . . . Crush . | . . . . Escape Stasis . | . . . . Rewire . | . . . . Trap . | . . . . Miscellaneous . | . . . . Route ------- -11/Scrapyard -10/Materials -9/Materials -8/Materials (discovered 1 exit: [*Fac]) History --------- Turn | Location | Event 11 | -11/Scrapyard | Discovered new exit (range 16) 44 | -11/Scrapyard | Entered Materials 141 | -10/Materials | Discovered new exit (range 12) 181 | -10/Materials | Entered another Materials area 181 | -9/Materials | Evolved 2 slots: Propulsion x2 302 | -9/Materials | Build established: Mutant 424 | -9/Materials | Discovered new exit (range 16) 430 | -9/Materials | Central database locked down 435 | -9/Materials | Entered another Materials area 435 | -8/Materials | Evolved 2 slots: Utility x2 573 | -8/Materials | Core integrity fell below 50% 598 | -8/Materials | Core integrity fell below 20% 609 | -8/Materials | Lost 7 parts (1p3n2u1w) 615 | -8/Materials | Discovered new exit (range 16) 620 | -8/Materials | Destroyed by S-10 Pest with Light Assault Rifle Last Messages --------------- reinforcements to Terminal M010. 00591_ Connecting with Terminal... >>Access(Branch) No branch access points found. 00594_ Sneak attack on T-07 Excavator. 00594_ Destroyed Wheel. 00594_ Destroyed Imp. Terrain Scanner. 00594_ T-07 Excavator system corrupted by crushing effect. 00594_ Mining Laser fried. 00594_ Seismic Detector fried. 00594_ T-07 Excavator destroyed. 00601_ K-01 Serf collects debris. 00612_ Triggered Blade Trap. 00612_ Massive razor-sharp blades shoot up from within the floor. 00612_ Hvy. Hammer severed. 00612_ System Shield severed. 00612_ Imp. Terrain Scan Processor severed. 00615_ EXIT=FOUND Map ----- +----------------------------------------------------+ | ?????????####????? ?? # #?????? | | ????????????????? ???? ?# #?????? | | ?????????????????? ######+#### #?????? | | +##??#????????????# ### #?????? | | ###?????????????? ??# +?????? | | !#??#????????????? ??# #?????? | | ###?????????????? ??# #######+#+#?????? | | ##??#????????????? ??# #???????????????? | | #??#?????????????? ??# #???????????????? | | #?#??? ??????????#???# #???????????????? | | #?#??????????????# ??#s #???????????????? | | #?#????????????### ### /#???????????????? | | #### ??????????# #^ #???????????????? | | +???????????# #???????????????? | | #? ? #??????+ T #???????????????? | | #???????????# ! #???????????????? | | # ??????????# # #?###########???? | | #???????????####### #? ] = #???? | | #??#??????????????# s# #???? | | ##????????????????# ss# ????? | | #?#???#???????????# + """ ""????????? | | #?????????????????# s# """ ""????????? | | #####??#?#????????????# s# """ ""????????? | | #??#???#?#????????????# #? ????????? | | #########?????????????# #?######????????? | | #?# ???????????# @#???????????????? | | """ #??? ??????????# #???????????????? | | """ #????"""???????# ???????????????? | | """ #?? ?"""?????? ???????????????? | | #?? ?"""????? ??????????????? | | """ !#??????????? ??????????????? | | """ #????"""???##+## < ?????????????? | | """ #?? ?"""???????# !?????????????? | | #????"""???????########????????????? | | ########???? ?????????????????????????????? | | ??????##??????????????????????????????????? | | ????#?????????????????????????????????????? | | ?#????#???????????????????????????????????? | | ?????#???#????????????????????????????????? | | ???#??????????????????????????????????????? | | ????#?????????????????????????????????????? | | ??????????????????????????????????????????? | | ????#?????????????????????????????????????? | | | | | | | | | | | | | | | +----------------------------------------------------+ Best States ------------- Heat Dissipation 31 Energy Generation 10 Energy Capacity 250 Matter Stores 300 Matter Capacity 300 Sight Range 16 Terrain Scan Range 16 Terrain Scan Density 110 Evasion (%) 53 Defensive Hacking 10 Item Schematics ----------------- None Robot Schematics ------------------ None Fabricated ------------ Nothing Repaired ---------- Nothing Studied --------- Imp. Hover Unit | -9/Materials | Hacked Alien Tech Used ----------------- None Achievements -------------- None Challenges ------------ None Game ------ Seed NuclearGaussLegs Manual? 0 Play Time 00:11:35 Cumulative 528.7 hours Start 2025.11.20 @ 20:26:55 End 2025.11.20 @ 20:35:18 Sessions 1 Manual Loads 0 Difficulty Rogue Special Mode None Game No. 705 Rogue 705 Adventurer 0 Explorer 0 Win Type - Total 19 Types 8/1/2/2/2/0/2/2/0/0 Lore% 92 Gallery% 86 Achievement% 69 Wizard Run 0 Options --------- Layout 2 ASCII 0 Keyboard 0 Movement Mouse Keybinds 0 Fullscreen 1 Font 24/Terminus Map View 50x49 Zoom Use 0% Tactical HUD 1 Map Filters NONE Filters NONE Steam 1 RUN: 4e6a8376-4b02-4cbd-813a-df4d8fe5791e